[Event "3rd VIZAG GM-Open 2022"]
[Site "Visakapatnam"]
[Date "2022.06.13"]
[Round "1.1"]
[White "Samal Ansuman"]
[Black "Amonatov, Farrukh"]
[Result "0-1"]
[ECO "B25"]
[WhiteElo "1776"]
[BlackElo "2622"]
[Annotator "TA"]
[PlyCount "90"]
[EventDate "2022.06.13"]
[EventType "swiss"]
[EventCountry "IND"]
[SourceTitle "playchess.com"]
[Source "ChessBase"]
[SourceQuality "1"]
[TimeControl "5400+30"]

{[%evp 33,90,41,43,35,39,35,47,42,50,39,44,27,25,4,13,0,0,-97,-58,-170,-160,-170,-134,-437,-330,-413,-372,-373,-297,-290,-266,-223,-164,-172,-113,-599,-573,-1568,-1568,-1404,-1403,-1225,-1225,-1018,-1018,-29975,-29977,-29977,-29978,-29978,-29979,-29979,-29980,-29980,-29981,-29981,-29982,-29982,-29982]} 1. e4 {[%emt 0:00:38]} c5 {[%emt 0:00:06]} 2. Nc3 {[%emt 0:00:45]} d6 {[%emt 0:00:08]} 3. g3 {[%emt 0:00:14]} Nc6 {[%emt 0:00:06]} 4. Bg2 {[%emt 0:00:09]} g6 {[%emt 0:00:05]} 5. d3 {[%emt 0:00:11]} Bg7 {[%emt 0:00:07]} 6. f4 {[%emt 0:00:37]} e6 {[%emt 0:00:07]} 7. Nf3 {[%emt 0:00:18]} Nge7 {[%emt 0:00:07][%cal Bg8e7,Be7f5,Bf5d4][%mdl 32]} 8. O-O {[%emt 0:00:18]} O-O {[%emt 0:00:06]} 9. Be3 {[%emt 0:01:04]} Nd4 {[%emt 0:00:06]} 10. e5 {[%emt 0:05:12]} Nef5 {[%emt 0:02:37]} 11. Bf2 {[%emt 0:00:24]} Nxf3+ {[%emt 0:01:41]} 12. Qxf3 {[%emt 0:00:33]} Nd4 {[%emt 0:00:38]} 13. Qd1 {[%emt 0:00:37]} dxe5 {[%emt 0:08:38]} 14. fxe5 {[%emt 0:01:19]} Bxe5 {[%emt 0:04:35]} 15. Ne4 {[%emt 0:00:10]} f5 {[%emt 0:00:10]} 16. Nxc5 {[%emt 0:02:21]} Qc7 {[%emt 0:00:04]} 17. b4 {[%emt 0:32:08]} Bg7 {[%emt 0:02:16]} 18. c3 {[%emt 0:08:53] B25: Closed Sicilian: 3 g3, lines without early Be3.} Nb5 {[%emt 0:03:01]} 19. Rc1 {[%emt 0:04:15]} e5 {[%emt 0:12:15]} (19... Bxc3 $2 20. a4 $18) 20. a4 {[%emt 0:10:16] White is slightly better.} Nd6 {[%emt 0:01:46]} 21. a5 {[%emt 0:05:44] Black must now prevent a6.} Rb8 $1 {[%emt 0:04:04]} 22. Qb3+ {[%emt 0:06:07]} Kh8 {[%emt 0:01:39] [#]} 23. Na4 $146 {[%emt 0:06:31]} ({Predecessor:} 23. Ne6 Bxe6 24. Qxe6 b6 25. axb6 axb6 26. c4 Rfe8 27. Qd5 e4 28. c5 bxc5 29. Bxc5 {½-½ (41) Rieling,T (2183)-Rosmann,I (2264) Germany 2007}) 23... b6 {[%emt 0:07:06]} 24. axb6 {[%emt 0:00:13]} axb6 {[%emt 0:00:02]} 25. b5 {[%emt 0:02:16] [#]} (25. c4 $11) 25... f4 $1 $17 {[%emt 0:05:16]} 26. Bc6 {[%emt 0:04:10]} ({White should try} 26. Qd5 $1 $15) 26... Bh3 $19 {[%emt 0:00:54]} 27. Rfe1 {[%emt 0:00:41]} fxg3 {[%emt 0:00:40]} 28. hxg3 {[%emt 0:01:16][%mdl 8192]} (28. Bxg3 $17 {was the crucial defense.} Nf5 29. Bf2) 28... e4 {[%emt 0:02:48][%cal Of8f2,Be5e4,Be4d3,Bd3c2][%mdl 32] ...Rxf2! is the strong threat.} 29. Qc2 {[%emt 0:06:37]} Rf3 {[%emt 0:04:11] And now ...Rbf8 would win.} 30. Re3 {[%emt 0:00:59]} Rxe3 {[%emt 0:02:51]} 31. Bxe3 {[%emt 0:00:05] [#]} Nxb5 $1 {[%emt 0:00:23][%mdl 512]} 32. Bf4 {[%emt 0:00:43] [#]} Qxc6 {[%emt 0:00:08]} 33. Bxb8 {[%emt 0:00:07]} exd3 {[%emt 0:00:10]} 34. Qf2 {[%emt 0:00:59][%mdl 8192] [#]} (34. Qd2 $17 {nothing else works.}) 34... Nd4 $1 {[%emt 0:01:18][%mdl 512]} 35. cxd4 {[%emt 0:00:36]} (35. Kh2 Bg4) 35... Qxc1+ {[%emt 0:00:07]} 36. Kh2 {[%emt 0:00:02]} Qc2 {[%emt 0:01:47]} 37. Qxc2 {[%emt 0:00:06]} dxc2 {[%emt 0:00:09]} 38. Bf4 {[%emt 0:00:04] [#]} Bxd4 $1 {[%emt 0:00:27][%cal Ob6b5] ( -> ...b5!)} 39. Kxh3 {[%emt 0:00:05][%mdl 4096] Endgame} (39. Nxb6 Be6) 39... b5 {[%emt 0:00:06][%cal Bb6b5,Bb5a4,Ba4a3,Ba3a2][%mdl 32] Black mates.} 40. Kg4 {[%emt 0:01:12]} bxa4 {[%emt 0:00:07]} 41. Bc1 {[%emt 0:00:04]} Bc5 {[%emt 0:00:22]} 42. Kf3 {[%emt 0:00:41]} a3 {[%emt 0:00:47]} 43. Ke2 {[%emt 0:00:10]} a2 {[%emt 0:00:04]} 44. Bb2+ {[%emt 0:00:04]} Kg8 {[%emt 0:00:06]} 45. Kd2 {[%emt 0:00:08] [#]} Ba3 $1 {[%emt 0:00:17][%mdl 512] Weighted Error Value: White=0.83/Black=0.11 (very precise)} 0-1

[Event "3rd VIZAG GM-Open 2022"]
[Site "Visakapatnam"]
[Date "2022.06.13"]
[Round "1.2"]
[White "Paichadze, Luka"]
[Black "Arul Anandh S P K"]
[Result "1-0"]
[ECO "C02"]
[WhiteElo "2567"]
[BlackElo "1757"]
[Annotator "TA"]
[PlyCount "105"]
[EventDate "2022.06.13"]
[EventType "swiss"]
[EventCountry "IND"]
[SourceTitle "playchess.com"]
[Source "ChessBase"]
[SourceQuality "1"]
[TimeControl "5400+30"]

{[%evp 15,105,44,67,51,68,35,44,41,44,30,39,25,50,37,44,55,66,50,61,67,65,23,24,-2,10,6,13,6,7,17,10,8,5,10,4,4,45,32,28,28,71,68,71,70,64,54,112,109,104,112,122,112,112,106,103,103,150,98,312,158,810,103,189,182,182,182,173,130,141,110,141,135,139,133,123,108,166,109,199,116,235,56,56,50,168,161,29992,29992,29993,29994,29997,29998]} 1. e4 {[%emt 0:00:04]} c5 {[%emt 0:00:23]} 2. Nf3 {[%emt 0:00:06]} e6 {[%emt 0:00:26]} 3. c3 {[%emt 0:00:05]} d5 {[%emt 0:04:16]} 4. e5 {[%emt 0:00:06]} Nc6 {[%emt 0:01:36]} 5. d4 {[%emt 0:00:06]} Qb6 {[%emt 0:00:46]} 6. Bd3 {[%emt 0:00:31]} Bd7 {[%emt 0:00:23]} 7. dxc5 {[%emt 0:01:14]} Bxc5 {[%emt 0:03:51]} 8. O-O {[%emt 0:00:08]} Qc7 {[%emt 0:05:28]} 9. Re1 $1 {[%emt 0:01:10][%mdl 4] is more profitable than 9.b4 at the moment. C02: French: Advance Variation.} Nge7 {[%emt 0:13:12]} 10. Nbd2 $5 {[%emt 0:02:22][%cal Bb1d2,Bd2b3,Bb3d4][%mdl 4] An interesting side line.} (10. b4 $5 {[%cal Rb4c5]} Bb6 11. a4 $11) 10... Ng6 {[%emt 0:04:16]} 11. Nb3 {[%emt 0:00:45] White is slightly better.} Bb6 {[%emt 0:06:00][%cal Rg6e5]} 12. Nbd4 {[%emt 0:04:33]} O-O {[%emt 0:05:24][%cal Rc6e5]} 13. Qe2 {[%emt 0:05:36] [#]} Rae8 $146 {[%emt 0:14:05]} ({Predecessor:} 13... a6 14. h4 f6 15. Bxg6 hxg6 16. Bf4 Nxd4 17. Nxd4 Bxd4 18. cxd4 f5 19. Rac1 Qa5 {1-0 (34) Grischuk,A (2764)-Moskalenko,A (2514) Chess.com INT 2022}) 14. Nxc6 {[%emt 0:26:06]} bxc6 {[%emt 0:02:35]} 15. h4 {[%emt 0:08:01]} f6 {[%emt 0:06:24]} 16. Bxg6 {[%emt 0:00:53]} hxg6 {[%emt 0:00:06]} 17. Be3 {[%emt 0:02:56] Inhibits g5.} c5 {[%emt 0:00:54]} 18. Bf4 {[%emt 0:01:02]} Bc6 {[%emt 0:12:18]} 19. Bg3 {[%emt 0:04:05] exf6 is the strong threat.} f5 {[%emt 0:04:29]} 20. Bf4 {[%emt 0:02:58]} Qb7 {[%emt 0:00:50]} 21. Ng5 {[%emt 0:01:39]} Bd8 {[%emt 0:00:27]} 22. f3 {[%emt 0:00:36]} Bxg5 {[%emt 0:04:08]} 23. Bxg5 {[%emt 0:00:13]} Rb8 {[%emt 0:01:19]} 24. b3 {[%emt 0:00:56]} Rfc8 {[%emt 0:01:57]} 25. Qf2 {[%emt 0:01:01]} c4 {[%emt 0:01:20]} 26. b4 {[%emt 0:01:01]} a5 {[%emt 0:00:44]} 27. a3 {[%emt 0:04:19][%cal Ba2a3,Ba3b4,Bb4a5][%mdl 32]} axb4 {[%emt 0:02:26]} 28. axb4 {[%emt 0:00:05]} Ra8 {[%emt 0:00:11] Prevents Ra7.} 29. Be3 {[%emt 0:00:54][%cal Bg5e3,Be3c5,Bc5b4][%mdl 32]} Ba4 {[%emt 0:01:36]} 30. Bc5 {[%emt 0:01:15]} Bb3 {[%emt 0:00:28]} (30... Ra6 $14) 31. Ra5 $16 {[%emt 0:06:00]} Rxa5 {[%emt 0:02:14]} 32. bxa5 {[%emt 0:00:01]} Qb5 {[%emt 0:00:26]} 33. Bb4 {[%emt 0:03:26]} Rc6 {[%emt 0:01:26]} 34. Ra1 {[%emt 0:00:39]} Ra6 {[%emt 0:00:12] Inhibits Qa7.} 35. Qc5 {[%emt 0:03:47]} Qb7 {[%emt 0:00:02]} (35... Qxc5+ $142 36. Bxc5 Kf7) 36. Kf2 {[%emt 0:01:06]} (36. Qf8+ $142 Kh7 37. Kf2) 36... Rc6 $2 {[%emt 0:00:43]} (36... Qb8 $16) 37. Qe7 {[%emt 0:04:34]} (37. Qf8+ $18 Kh7 38. Qe8) 37... Qc8 $2 {[%emt 0:00:03]} (37... Qxe7 $16 38. Bxe7 Ra6) 38. Qa7 $2 {[%emt 0:01:24]} (38. h5 $18 gxh5 39. Rh1) 38... Rc7 {[%emt 0:01:01]} (38... Ra6 $16 {is a better defense.} 39. Qe7 Bc2) 39. Qb6 {[%emt 0:01:31] Threatens to win with a6.} Rc6 {[%emt 0:00:57]} 40. Qb5 {[%emt 0:00:27] aiming for a6.} Ra6 {[%emt 0:00:14]} 41. Bc5 {[%emt 0:00:32]} Kh7 {[%emt 0:00:40]} 42. Bd4 {[%emt 0:00:56] White is more active.} Bc2 {[%emt 0:00:20]} 43. Ke3 {[%emt 0:02:11]} Bb3 {[%emt 0:00:11]} 44. Rh1 {[%emt 0:01:07]} Ra8 {[%emt 0:00:41]} 45. Bb6 {[%emt 0:00:46]} Qb8 {[%emt 0:00:47] [#]} (45... Ra6 $16 {was worth a try.}) 46. Kd4 {[%emt 0:00:52]} (46. Qc6 $1 $18 {[%cal Rc6e6]} Qxe5+ 47. Kf2) 46... Qb7 {[%emt 0:00:12] [#]} (46... Qc8 $16) 47. f4 {[%emt 0:01:57]} (47. Ra1 $1 $18) 47... Kh6 {[%emt 0:00:44]} (47... Qc8 $16 {was necessary.}) 48. Rh3 $2 {[%emt 0:03:21]} (48. Ra1 $18) 48... Bc2 $14 {[%emt 0:00:36]} 49. Qc5 {[%emt 0:00:49]} Be4 {[%emt 0:00:25]} ({Black should play} 49... Qd7 $1 $14) 50. Qc7 $36 {[%emt 0:02:28][%mdl 2048] White is on the roll. Dancing on a razor blade.} Qa6 {[%emt 0:00:44]} (50... Qxc7 $18 51. Bxc7 Bxg2) 51. Qe7 {[%emt 0:00:33] White mates.} Qc8 {[%emt 0:00:28]} 52. h5 {[%emt 0:01:08]} gxh5 {[%emt 0:00:29] [#]} 53. Rxh5+ $3 {[%emt 0:00:16][%mdl 512] Weighted Error Value: White=0.45/Black=0.36} 1-0

[Event "3rd VIZAG GM-Open 2022"]
[Site "Visakapatnam"]
[Date "2022.06.13"]
[Round "1.3"]
[White "Joel Paul Ganta"]
[Black "Harsha Bharathakoti"]
[Result "0-1"]
[ECO "B06"]
[WhiteElo "1733"]
[BlackElo "2547"]
[Annotator "TA"]
[PlyCount "82"]
[EventDate "2022.06.13"]
[EventType "swiss"]
[EventCountry "IND"]
[SourceTitle "playchess.com"]
[Source "ChessBase"]
[SourceQuality "1"]
[TimeControl "5400+30"]

{[%evp 9,82,27,43,43,64,28,29,26,47,47,95,52,68,55,67,32,47,-6,0,0,4,-56,-44,-106,-104,-102,-100,-100,-102,-103,-103,-115,-88,-88,-88,-88,-85,-87,-81,-97,-81,-84,-66,-88,-85,-82,-64,-145,-142,-149,-123,-136,-109,-109,-109,-181,-145,-444,-181,-371,-350,-372,-353,-714,-701,-947,-918,-868,-1027,-975,-974,-941,-908,-29995,-29996]} 1. e4 {[%emt 0:00:02]} g6 {[%emt 0:01:25]} 2. d4 {[%emt 0:01:15]} Bg7 {[%emt 0:00:06]} 3. Nc3 {[%emt 0:00:21]} d6 {[%emt 0:00:07]} 4. h4 {[%emt 0:05:01]} h5 {[%emt 0:06:23]} 5. Bg5 {[%emt 0:00:31]} Nc6 {[%emt 0:04:36]} 6. Nge2 {[%emt 0:06:11] B06: Modern Defence.} a6 {[%emt 0:00:41]} 7. a4 {[%emt 0:04:28]} Nf6 {[%emt 0:07:52]} 8. Qd2 {[%emt 0:04:24] [#] White has an edge.} Nb4 $146 {[%emt 0:09:32]} ({Predecessor:} 8... O-O 9. f3 {½-½ (9) Gorovets,A (2384)-Bernadskiy,V (2319) Chervonograd 2008}) 9. f3 {[%emt 0:07:32]} Nd7 {[%emt 0:25:31]} (9... Bd7 $14 {feels stronger.}) 10. Nd1 {[%emt 0:23:20]} Nc6 {[%emt 0:08:57][%cal Bb4c6,Bc6a5,Ba5c4][%mdl 32]} 11. c3 {[%emt 0:07:23]} Na5 {[%emt 0:04:29] White must now prevent ...Nb3.} 12. Nc1 {[%emt 0:03:08] Against Nb3} c5 $1 {[%emt 0:00:52]} 13. d5 {[%emt 0:01:31]} (13. Rb1 $14) 13... b5 {[%emt 0:07:29]} 14. axb5 {[%emt 0:16:39]} axb5 {[%emt 0:00:05]} 15. Bxb5 {[%emt 0:00:41]} (15. Qf2 $11) 15... Nc4 $1 $15 {[%emt 0:01:11]} 16. Bxc4 {[%emt 0:00:02]} Rxa1 $17 {[%emt 0:00:06]} 17. O-O {[%emt 0:05:31]} Ne5 {[%emt 0:07:48]} 18. Bb5+ {[%emt 0:00:36]} Bd7 {[%emt 0:00:06]} 19. Be2 {[%emt 0:01:18]} O-O {[%emt 0:03:16]} 20. Bh6 {[%emt 0:01:54]} Qb6 {[%emt 0:01:30]} 21. Bxg7 {[%emt 0:00:43]} Kxg7 {[%emt 0:00:02]} 22. f4 {[%emt 0:01:26]} Ng4 {[%emt 0:00:08] 0x0.0022fa92f1d9dp-1022s more active pieces. The white rooks are badly placed.} 23. Bxg4 {[%emt 0:03:12]} Bxg4 {[%emt 0:02:40]} 24. Ne3 {[%emt 0:00:01]} f5 {[%emt 0:02:39]} 25. e5 {[%emt 0:01:58]} Ra4 {[%emt 0:02:49] Against Nc4} 26. b3 {[%emt 0:00:43] [#]} Re4 $36 {[%emt 0:00:35][%mdl 2048] Hoping for ...c4. Black is on the roll.} 27. Nc4 {[%emt 0:00:40]} Qd8 {[%emt 0:01:02]} 28. e6 {[%emt 0:02:34]} ({White should try} 28. Qd3 $15) 28... Qa8 {[%emt 0:00:11]} 29. Kh2 {[%emt 0:01:09]} Qa6 {[%emt 0:00:51]} 30. Re1 {[%emt 0:00:33]} Rxe1 {[%emt 0:01:56]} 31. Qxe1 {[%emt 0:01:13]} Qa1 {[%emt 0:00:12]} 32. Qe3 {[%emt 0:00:00]} (32. Qd2 $17) 32... Qb1 {[%emt 0:00:22] aiming for ...Qe4.} 33. Qd2 $2 {[%emt 0:00:26][%mdl 8192] White does not recover from this.} (33. b4 $17 {keeps fighting.} Qe4 34. Qxe4 fxe4 35. bxc5 dxc5 36. Nb3) 33... Qe4 {[%emt 0:00:35]} (33... Ra8 $142 {...Ra1 is the strong threat.} 34. Nb2 {[#]} Bd1 $1 {[%mdl 512]}) 34. Nb6 $2 {[%emt 0:00:23]} (34. Na3) 34... Rb8 $19 {[%emt 0:00:43][%cal Bf8b8,Bb8b5,Bb5b7,Bb7b2][%mdl 32]} 35. Na4 {[%emt 0:00:36]} c4 {[%emt 0:00:26]} 36. b4 {[%emt 0:00:21]} (36. bxc4 Qxc4 37. Nb2) 36... Rb5 {[%emt 0:00:04]} 37. Nc5 {[%emt 0:00:41]} dxc5 {[%emt 0:00:09]} 38. d6 {[%emt 0:00:01]} exd6 {[%emt 0:01:29]} 39. Qxd6 {[%emt 0:00:02]} Rb7 {[%emt 0:00:31]} 40. bxc5 {[%emt 0:00:28] [#]} Bf3 $1 {[%emt 0:00:27]} 41. gxf3 {[%emt 0:00:49]} (41. c6 Qc2) 41... Rb2+ {[%emt 0:00:09] Weighted Error Value: White=0.66/Black=0.17 (very precise)} 0-1

[Event "3rd VIZAG GM-Open 2022"]
[Site "Visakapatnam"]
[Date "2022.06.13"]
[Round "1.4"]
[White "Savchenko, Boris"]
[Black "Bajaj Prakhar"]
[Result "1-0"]
[ECO "B68"]
[WhiteElo "2524"]
[BlackElo "1699"]
[Annotator "TA"]
[PlyCount "67"]
[EventDate "2022.06.13"]
[EventType "swiss"]
[EventCountry "IND"]
[SourceTitle "playchess.com"]
[Source "ChessBase"]
[SourceQuality "1"]
[TimeControl "5400+30"]

{[%evp 18,67,45,22,24,0,0,0,14,0,0,0,2,-9,0,-13,-8,-33,43,44,114,131,133,113,216,212,195,218,368,351,393,388,374,378,370,369,385,358,365,360,426,411,498,491,317,472,550,554,562,555,475,472]} 1. e4 {[%emt 0:00:03]} c5 {[%emt 0:00:17]} 2. Nf3 {[%emt 0:00:07]} d6 {[%emt 0:00:15]} 3. d4 {[%emt 0:00:09]} cxd4 {[%emt 0:00:13]} 4. Nxd4 {[%emt 0:00:05]} Nf6 {[%emt 0:00:08]} 5. Nc3 {[%emt 0:00:05]} Nc6 {[%emt 0:00:12]} 6. Bg5 {[%emt 0:00:07]} e6 {[%emt 0:00:11]} 7. Qd2 {[%emt 0:00:38]} a6 {[%emt 0:01:00]} 8. O-O-O {[%emt 0:00:10]} Bd7 {[%emt 0:00:58][%cal Bc8d7,Bd7c6,Bc6e4][%mdl 32]} 9. f4 {[%emt 0:00:31]} Be7 {[%emt 0:00:43]} 10. Kb1 {[%emt 0:03:05]} b5 {[%emt 0:07:22] B68: Sicilian: Richter-Rauzer: 7...a6 8 0-0-0 Bd7 9 f4 Be7 .} 11. Bxf6 {[%emt 0:00:06]} (11. g4 {feels hotter.} O-O 12. Nxc6 Bxc6 13. Bxf6 Bxf6 14. Bg2) 11... Bxf6 {[%emt 0:08:22]} 12. Nxc6 {[%emt 0:00:13]} Bxc6 {[%emt 0:00:07] The position is equal.} 13. Qxd6 {[%emt 0:00:09]} Qxd6 {[%emt 0:00:31]} 14. Rxd6 {[%emt 0:00:07][%cal Bd1d6,Bd6a6,Ba6a7][%mdl 32]} Rc8 {[%emt 0:00:41] [#]} 15. h4 $146 {[%emt 0:27:48]} ({Predecessor:} 15. a4 Bxc3 16. bxc3 Bxe4 17. Rxa6 Rxc3 18. Bxb5+ Ke7 19. Re1 Bxc2+ 20. Kb2 Rhc8 21. Rc1 Rb3+ 22. Ka2 Rbc3 23. Kb2 Rb3+ 24. Ka2 Rbc3 25. Kb2 Rb3+ 26. Ka2 Rbc3 {½-½ (26) Yu,Y (2705)-Salem,A (2586) Doha 2014}) 15... Bxc3 {[%emt 0:10:27]} 16. bxc3 {[%emt 0:00:07]} Bxe4 {[%emt 0:03:34]} 17. Rxa6 {[%emt 0:23:34]} Ke7 {[%emt 0:28:19]} ({Better is} 17... Rxc3 $15 18. Bd3 (18. Bxb5+ Ke7 $15) 18... Bxd3 19. cxd3 (19. Ra8+ Ke7 $15) 19... O-O) 18. Rh3 {[%emt 0:03:32]} Bf5 {[%emt 0:10:15] White leaves nothing to chance now.} (18... Rcd8 $14 19. Kc1 Ra8 20. Bxb5 Rxa6 21. Bxa6 Bxg2) 19. Ra7+ {[%emt 0:04:27]} Kf6 {[%emt 0:02:29]} 20. Re3 {[%emt 0:00:09]} Rhd8 {[%emt 0:05:45] [#]} (20... b4 $16) 21. Be2 $1 $18 {[%emt 0:20:22] Hoping for g4.} h5 {[%emt 0:08:15]} (21... Rd2 $2 22. g4 Rxe2 23. g5+ (23. Rxe2 Bxg4 24. Rg2 Bf3 $16) 23... Kg6 24. Rxe2) 22. Kc1 {[%emt 0:03:50] Prevents Rd2.} (22. Bxb5 Rb8 23. a4 Rd2 $14) 22... Rd5 {[%emt 0:04:21]} ({Not} 22... Ra8 23. Rxa8 Rxa8 24. Kb2 $16) (22... b4 $142 23. Bxh5 g6) 23. Bxh5 {[%emt 0:00:39][%csl Gh5][%cal Ra7f7]} g6 {[%emt 0:02:05]} 24. Be2 {[%emt 0:00:32]} e5 {[%emt 0:00:45]} 25. fxe5+ {[%emt 0:00:48]} Rxe5 {[%emt 0:00:10] [#]} 26. Rxf7+ $3 {[%emt 0:00:36][%mdl 512]} Kxf7 {[%emt 0:00:06]} (26... Ke6 27. Rxe5+) 27. Rxe5 {[%emt 0:00:06]} Rxc3 {[%emt 0:00:05][%mdl 4096] Endgame KRB-KRB} 28. g4 {[%emt 0:01:09]} ({Weaker is} 28. Bxb5 Rxc2+ 29. Kd1 Rxg2 $14) 28... Bxc2 {[%emt 0:02:32]} 29. Kd2 {[%emt 0:00:39]} b4 {[%emt 0:02:21]} 30. a3 {[%emt 0:00:25][%cal Ba2a3,Ba3b4,Bb4b5][%mdl 32]} Ba4 {[%emt 0:01:55]} 31. axb4 {[%emt 0:00:08]} Rc2+ {[%emt 0:00:07] White is clearly winning.} 32. Ke3 {[%emt 0:00:07]} Rb2 {[%emt 0:00:34]} 33. b5 {[%emt 0:00:29]} Kf6 {[%emt 0:00:48]} 34. Kf4 {[%emt 0:00:27] Weighted Error Value: White=0.03 (flawless) /Black=0.35} 1-0